bitfinex-derivatives/quotes_BTCF0:USTF0_20260113
["timestamp","ask_amount","ask_price","bid_price","bid_amount"]
[1768341896524,0.09742311,94177.0,94161.0,0.5056]
[1768341899530,0.00015924,94178.0,94162.0,0.0909453]
[1768341899730,0.00015924,94178.0,94162.0,0.4709453]
[1768341901228,0.00015924,94178.0,94162.0,0.4815683]
[1768341901729,0.00015924,94178.0,94162.0,0.4709453]
[1768341901926,0.08676005,94191.0,94172.0,0.0909453]
[1768341902130,0.09564,94198.0,94175.0,0.0909453]
[1768341902333,0.09564,94198.0,94178.0,0.0909453]
[1768341902536,0.09564,94198.0,94179.0,0.0909453]
[1768341904133,0.00530825,94193.0,94179.0,0.0909453]
[1768341904336,0.09564,94202.0,94184.0,0.0909453]
[1768341908145,0.09564,94202.0,94184.0,0.0478453]
[1768341909244,0.18784319,94202.0,94180.0,0.09103287]
[1768341910039,0.18784319,94202.0,94181.0,0.09889496]
[1768341910246,0.191248,94210.0,94185.0,0.09889496]
[1768341910434,0.09564,94212.0,94190.0,0.09479612]
[1768341910634,0.00015924,94207.0,94191.0,0.09889496]
[1768341913449,0.00015924,94207.0,94192.0,0.19369108]
[1768341913641,0.00015924,94207.0,94193.0,0.09889496]
[1768341913844,0.00015924,94207.0,94193.0,0.19369108]
[1768341914044,0.00015924,94207.0,94194.0,0.09889496]
[1768341914739,0.00015924,94207.0,94187.0,0.09479612]
[1768341915047,0.00015924,94207.0,94187.0,0.56369108]
[1768341915242,0.00015924,94207.0,94178.0,0.09889496]
[1768341915243,0.09904481,94203.0,94178.0,0.09889496]
[1768341915449,0.09904481,94203.0,94168.0,0.09564]
[1768341915450,0.191248,94192.0,94168.0,0.09564]
[1768341915642,0.09389299,94200.0,94166.0,0.09889496]
[1768341915643,0.09220319,94185.0,94166.0,0.09889496]
[1768341915836,0.09220319,94185.0,94147.0,0.05737931]
[1768341915837,0.09904481,94181.0,94159.0,0.09564]
[1768341916042,0.09904481,94189.0,94159.0,0.09564]
[1768341916043,0.09904481,94179.0,94159.0,0.26564]
[1768341916350,0.09904481,94189.0,94159.0,0.09564]
[1768341916351,0.09904481,94177.0,94159.0,0.09564]
[1768341916934,0.09904481,94177.0,94159.0,0.19372402]
[1768341917547,0.09888354,94176.0,94154.0,0.09808402]
[1768341917749,0.19403342,94176.0,94155.0,0.09808402]
[1768341918044,0.19403342,94176.0,94156.0,0.09808402]
[1768341918249,0.19403342,94176.0,94157.0,0.09808402]
[1768341918445,0.19403342,94176.0,94157.0,0.49808402]
[1768341919147,0.17992868,94191.0,94163.0,0.09808402]
[1768341919148,0.09888354,94188.0,94163.0,0.09808402]
[1768341919448,0.09888354,94184.0,94160.0,0.09808402]
[1768341919649,0.09888354,94183.0,94160.0,0.09808402]
[1768341919850,0.19403342,94183.0,94160.0,0.09808402]
[1768341920052,0.09514988,94190.0,94164.0,0.19071359]
[1768341920245,0.09514988,94190.0,94166.0,0.09262957]
[1768341920445,0.09514988,94190.0,94167.0,0.09808402]
[1768341920647,0.09888354,94189.0,94167.0,0.09808402]
[1768341920854,0.09514988,94188.0,94167.0,0.09808402]
[1768341921060,0.09888354,94187.0,94167.0,0.09808402]
[1768341921647,0.19403342,94186.0,94167.0,0.09808402]
[1768341922156,0.19403342,94185.0,94166.0,0.09262957]
[1768341922355,0.19403342,94185.0,94163.0,0.09808402]
[1768341923948,0.09888354,94175.0,94153.0,0.11401853]
[1768341924151,0.09888354,94175.0,94155.0,0.010623]
[1768341924347,0.09888354,94175.0,94155.0,0.06]
[1768341924542,0.19403342,94175.0,94156.0,0.010623]
[1768341926048,0.19403342,94175.0,94158.0,0.010623]
[1768341926461,0.19403342,94175.0,94154.0,0.09808402]
[1768341926652,0.19403342,94175.0,94155.0,0.09808402]
[1768341926854,0.19403342,94175.0,94158.0,0.010623]
[1768341927655,0.19403342,94175.0,94155.0,0.09808402]
[1768341927957,0.19403342,94175.0,94155.0,0.15808402]
[1768341928960,0.19403342,94175.0,94159.0,0.010623]
[1768341935269,0.19403342,94175.0,94157.0,0.010623]
[1768341936969,0.09030887,94174.0,94157.0,0.010623]
[1768341937157,0.08428868,94191.0,94153.0,0.00531051]
[1768341937158,0.09030887,94185.0,94165.0,0.09725212]
[1768341937361,0.09564,94186.0,94170.0,0.010622]
[1768341937563,0.08428868,94191.0,94171.0,0.10787412]
[1768341937869,0.09564,94190.0,94171.0,0.09725212]
[1768341938269,0.18594887,94190.0,94171.0,0.09725212]
[1768341939162,0.18594887,94190.0,94171.0,0.10787412]
[1768341939364,0.0870073,94191.0,94176.0,0.010621]
[1768341939561,0.09185916,94194.0,94176.0,0.10787312]
[1768341939764,0.09185916,94194.0,94176.0,0.09725212]
[1768341944174,0.09185916,94194.0,94176.0,0.10787312]
[1768341945468,0.09030887,94197.0,94178.0,0.010621]
[1768341945667,0.09185916,94201.0,94181.0,0.09725212]
[1768341945870,0.18749916,94201.0,94182.0,0.09725212]
[1768341946064,0.09389745,94200.0,94182.0,0.09725212]
[1768341947783,0.18420632,94200.0,94181.0,0.09568627]
[1768341948885,0.09030887,94199.0,94180.0,0.09389745]
[1768341950474,0.18575661,94200.0,94181.0,0.09725212]
[1768341951277,0.09030887,94197.0,94177.0,0.09725212]
[1768341951678,0.09030887,94196.0,94177.0,0.09725212]
[1768341951879,0.18216803,94196.0,94177.0,0.09725212]
[1768341953388,0.09030887,94194.0,94176.0,0.09564]
[1768341953581,0.09389745,94190.0,94176.0,0.09564]
[1768341953782,0.09030887,94194.0,94176.0,0.09564]
[1768341954183,0.18216803,94194.0,94176.0,0.09564]
[1768341955287,0.09030887,94193.0,94176.0,0.09564]
[1768341957386,0.09185916,94194.0,94176.0,0.09564]
[1768341957688,0.09185916,94194.0,94176.0,0.19289212]
[1768341959188,0.18420632,94190.0,94176.0,0.09564]
[1768341959391,0.18216803,94189.0,94176.0,0.09564]
[1768341968098,0.09002634,94188.0,94176.0,0.09564]
[1768341968398,0.09254036,94187.0,94176.0,0.09564]
[1768341968797,0.09389745,94190.0,94176.0,0.09564]
[1768341972696,0.09389745,94190.0,94170.0,0.06988829]
[1768341972892,0.09389745,94190.0,94172.0,0.09564]
[1768341973601,0.18272594,94192.0,94172.0,0.09564]
[1768341973801,0.09389745,94190.0,94172.0,0.09564]
[1768341975302,0.18272594,94192.0,94172.0,0.09564]
[1768341975507,0.09389745,94190.0,94172.0,0.10564]
[1768341976610,0.09389745,94190.0,94172.0,0.20474999]
[1768341976796,0.09389745,94190.0,94173.0,0.09347563]
[1768341977306,0.00015924,94192.0,94173.0,0.19254684]
[1768341977504,0.00015924,94192.0,94176.0,0.09347563]
[1768341977692,0.00015924,94192.0,94180.0,0.18737308]
[1768341978094,0.00015924,94192.0,94180.0,0.09347563]
[1768341978290,0.09038777,94199.0,94181.0,0.09347563]
[1768341979604,0.09389745,94200.0,94181.0,0.09347563]
[1768341979605,0.09564,94202.0,94182.0,0.09347563]
[1768341979808,0.09389745,94200.0,94183.0,0.09347563]
[1768341980799,0.09038777,94209.0,94190.0,0.18737308]
[1768341980994,0.09038777,94209.0,94191.0,0.09347563]
[1768341984902,0.18243663,94212.0,94199.0,0.09389745]
[1768341985107,0.09038777,94212.0,94193.0,0.09347563]
[1768341985308,0.09389745,94210.0,94193.0,0.09347563]
[1768341985712,0.09389745,94210.0,94193.0,0.09363487]
[1768341986007,0.00530712,94213.0,94200.0,0.09389745]
[1768341986219,0.09389745,94220.0,94204.0,0.09347563]
[1768341986606,0.09389745,94220.0,94201.0,0.09347563]
[1768341986806,0.18428522,94220.0,94201.0,0.09347563]
[1768341987606,0.09389745,94211.0,94201.0,0.09347563]
[1768341987806,0.18428522,94220.0,94201.0,0.09347563]
[1768341988115,0.27633408,94220.0,94201.0,0.09347563]
[1768341989016,0.09038777,94219.0,94201.0,0.09347563]
[1768341989416,0.18243663,94219.0,94197.0,0.09347563]
[1768341990319,0.09038777,94219.0,94198.0,0.09347563]
[1768341991421,0.09038777,94219.0,94199.0,0.09347563]
[1768341991622,0.09389745,94210.0,94196.0,0.18911563]
[1768341991923,0.09389745,94210.0,94197.0,0.09347563]
[1768341992117,0.09389745,94210.0,94196.0,0.09564]
[1768341993214,0.09389745,94210.0,94196.0,0.18911563]
[1768341993717,0.09204886,94216.0,94196.0,0.18911563]
[1768341993914,0.09389745,94210.0,94196.0,0.18911563]
[1768341994115,0.09038777,94215.0,94197.0,0.09347563]
[1768341994309,0.09389745,94210.0,94197.0,0.09347563]
[1768341995917,0.1903265,94206.0,94186.0,0.18701767]
[1768341996117,0.09389745,94200.0,94187.0,0.0956]
[1768341996328,0.1903265,94206.0,94187.0,0.4356]
[1768341996515,0.1903265,94206.0,94187.0,0.52675539]
[1768341996716,0.1903265,94206.0,94188.0,0.09115539]
[1768341996912,0.1903265,94206.0,94188.0,0.49115539]
[1768341997210,0.08596061,94220.0,94198.0,0.18701767]
[1768341997416,0.17495822,94238.0,94198.0,0.18701767]
[1768341997417,0.0011701,94233.0,94214.0,0.18701767]
[1768341997613,0.0011701,94233.0,94220.0,0.09389745]
[1768341997827,0.09389745,94230.0,94216.0,0.0956]
[1768341998423,0.01244894,94233.0,94217.0,0.09115539]
[1768341998624,0.09389745,94230.0,94216.0,0.0956]
[1768341998924,0.17800646,94230.0,94216.0,0.0956]
[1768342001127,0.27678336,94230.0,94216.0,0.0956]
[1768342001536,0.08410901,94230.0,94217.0,0.09115539]
[1768342001737,0.01244894,94233.0,94221.0,0.09115539]
[1768342005734,0.09898337,94233.0,94221.0,0.09115539]
[1768342016343,0.08653443,94233.0,94221.0,0.09115539]
[1768342016543,0.10408177,94253.0,94228.0,0.09586228]
[1768342016746,0.10408177,94253.0,94233.0,0.09115539]
[1768342016951,0.0987769,94241.0,94222.0,0.010616]
[1768342017152,0.0987769,94241.0,94223.0,0.0956]
[1768342017340,0.0987769,94241.0,94223.0,0.56675539]
[1768342018049,0.0987769,94241.0,94223.0,0.47115539]
[1768342018238,0.0987769,94241.0,94224.0,0.0956]
[1768342018444,0.0987769,94241.0,94224.0,0.496216]
[1768342018642,0.0987769,94241.0,94228.0,0.010615]
[1768342018842,0.0987769,94241.0,94228.0,0.190615]
[1768342020347,0.0915496,94246.0,94228.0,0.190615]
[1768342020652,0.10800172,94253.0,94231.0,0.09115539]
[1768342020953,0.11522902,94253.0,94232.0,0.09115539]
[1768342021152,0.01645212,94253.0,94236.0,0.09115539]
[1768342021452,0.01645212,94253.0,94237.0,0.09115539]
[1768342021651,0.01645212,94253.0,94238.0,0.10176939]
[1768342021949,0.2859265,94259.0,94235.0,0.0956]
[1768342021950,0.01117008,94267.0,94249.0,0.010613]
[1768342022139,0.0987769,94305.0,94278.0,0.09115539]
[1768342022344,0.0987769,94292.0,94271.0,0.0956]
[1768342022544,0.0987769,94292.0,94271.0,0.19146228]
[1768342022745,0.0987769,94292.0,94271.0,0.0956]
[1768342022947,0.0987769,94298.0,94272.0,0.09586228]
[1768342023148,0.18521791,94298.0,94272.0,0.09602143]
[1768342023348,0.01111027,94299.0,94273.0,0.09115539]
[1768342023548,0.01111027,94299.0,94274.0,0.09586228]
[1768342023751,0.0987769,94332.0,94299.0,0.09115539]
[1768342023948,0.0987769,94332.0,94303.0,0.09586228]
[1768342024159,0.0987769,94330.0,94305.0,0.09115539]
[1768342024442,0.01203894,94333.0,94308.0,0.09586228]
[1768342024643,0.01203894,94333.0,94310.0,0.09586228]
[1768342024862,0.09329595,94332.0,94311.0,0.09556]
[1768342025052,0.09329595,94332.0,94311.0,0.48556]
[1768342025363,0.09329595,94326.0,94293.0,0.09735917]
[1768342025544,0.01203894,94333.0,94295.0,0.09735917]
[1768342025545,0.09329595,94322.0,94295.0,0.09735917]
[1768342025746,0.09383507,94319.0,94295.0,0.31]
[1768342025945,0.09383507,94319.0,94295.0,0.40735917]
[1768342026962,0.09383507,94319.0,94290.0,0.91784]
[1768342026963,0.09556,94318.0,94279.0,0.09735917]
[1768342027169,0.09383507,94317.0,94280.0,0.09556]
[1768342027348,0.09383507,94317.0,94280.0,0.48556]
[1768342027665,0.09383507,94307.0,94280.0,0.14556]
[1768342027850,0.09383507,94305.0,94280.0,0.14556]
[1768342028157,0.18713102,94303.0,94280.0,0.09556]
[1768342028358,0.09329595,94302.0,94280.0,0.09556]
[1768342028558,0.09329595,94301.0,94280.0,0.09556]
[1768342029655,0.09329595,94301.0,94281.0,0.09735917]
[1768342030252,0.09329595,94322.0,94290.0,0.19165512]
[1768342030460,0.09383507,94320.0,94294.0,0.09735917]
[1768342030652,0.08514607,94332.0,94309.0,0.09735917]
[1768342030856,0.08514607,94332.0,94302.0,0.010607]
[1768342030857,0.09329595,94332.0,94306.0,0.09735917]
[1768342031056,0.09329595,94331.0,94306.0,0.09735917]
[1768342031260,0.09329595,94331.0,94307.0,0.010606]
[1768342031459,0.00099956,94333.0,94315.0,0.19165512]
[1768342031767,0.005297,94393.0,94332.0,0.19165512]
[1768342031768,0.09329595,94358.0,94332.0,0.19165512]
[1768342031957,0.09329595,94358.0,94334.0,0.19165512]
[1768342032159,0.09329595,94367.0,94338.0,0.19165512]
[1768342032362,0.09329595,94368.0,94340.0,0.19165512]
[1768342032558,0.11245342,94361.0,94336.0,0.106123]
[1768342032760,0.01861835,94361.0,94341.0,0.19165512]
[1768342032966,0.01861835,94361.0,94344.0,0.010602]
[1768342033161,0.01861835,94361.0,94344.0,0.20225712]
[1768342033358,0.01861835,94361.0,94339.0,0.09429595]
[1768342033559,0.01861835,94361.0,94339.0,0.38]
[1768342033859,0.09329595,94345.0,94326.0,0.09552]
[1768342034064,0.09383507,94343.0,94326.0,0.09552]
[1768342034271,0.01861835,94361.0,94346.0,0.19165512]
[1768342034471,0.09859408,94373.0,94347.0,0.28717512]
[1768342034661,0.00136182,94373.0,94350.0,0.19165512]
[1768342034860,0.09329595,94372.0,94351.0,0.09552]
[1768342035263,0.00136182,94373.0,94351.0,0.19287917]
[1768342035566,0.00136182,94373.0,94353.0,0.09735917]
[1768342035769,0.00136182,94373.0,94351.0,0.09552]
[1768342035964,0.09329595,94372.0,94351.0,0.09552]
[1768342036163,0.09383507,94371.0,94351.0,0.09552]
[1768342036368,0.09329595,94366.0,94337.0,0.09552]
[1768342036673,0.00136182,94373.0,94330.0,0.09552]
[1768342036674,0.09383507,94359.0,94330.0,0.09552]
[1768342036881,0.09068064,94357.0,94330.0,0.26552]
[1768342037175,0.09552,94360.0,94330.0,0.26552]
[1768342037176,0.09068064,94355.0,94330.0,0.26552]
[1768342037470,0.09467087,94356.0,94334.0,0.00015897]
[1768342037672,0.09070002,94366.0,94336.0,0.18814321]
[1768342037872,0.09068064,94365.0,94336.0,0.18814321]
[1768342038066,0.09068064,94365.0,94336.0,0.09320356]
[1768342038259,0.09068064,94365.0,94334.0,0.00015897]
[1768342038460,0.09068064,94365.0,94335.0,0.010603]
[1768342038864,0.09068064,94365.0,94334.0,0.00015897]
[1768342039064,0.09068064,94365.0,94334.0,0.01076197]
[1768342039262,0.00015897,94370.0,94340.0,0.18814321]
[1768342039562,0.00015897,94370.0,94342.0,0.18814321]
[1768342039771,0.09548,94369.0,94342.0,0.28362321]
[1768342039970,0.09548,94369.0,94343.0,0.18814321]
[1768342040162,0.09548,94369.0,94344.0,0.18814321]
[1768342040471,0.09548,94369.0,94345.0,0.18814321]
[1768342040665,0.19015087,94369.0,94345.0,0.18814321]
[1768342040865,0.09467087,94368.0,94342.0,0.09548]
[1768342041268,0.09467087,94366.0,94342.0,0.09548]
[1768342041469,0.09068064,94365.0,94342.0,0.09548]
[1768342041670,0.09068064,94363.0,94342.0,0.09548]
[1768342041870,0.09467087,94362.0,94342.0,0.09548]
[1768342042065,0.09467087,94360.0,94342.0,0.09548]
[1768342042268,0.09068064,94359.0,94342.0,0.09548]
[1768342042478,0.09068064,94357.0,94334.0,0.00015897]
[1768342042770,0.09068064,94353.0,94317.0,0.09320356]
[1768342043073,0.09548,94358.0,94302.0,0.09320356]
[1768342043074,0.09467087,94348.0,94302.0,0.09320356]
[1768342043277,0.09068064,94345.0,94303.0,0.09548]
[1768342043572,0.09467087,94325.0,94303.0,0.09548]
[1768342043763,0.09467087,94323.0,94294.0,0.18814321]
[1768342043966,0.09467087,94321.0,94295.0,0.09548]
[1768342044162,0.09462087,94321.0,94295.0,0.15548]
[1768342044364,0.09462087,94321.0,94296.0,0.010608]
[1768342046365,0.09467087,94320.0,94295.0,0.09548]
[1768342046571,0.09068064,94319.0,94295.0,0.09548]
[1768342046773,0.09467087,94320.0,94296.0,0.18814321]
[1768342047274,0.09462087,94320.0,94296.0,0.18814321]
[1768342047475,0.09462087,94320.0,94297.0,0.18814321]
[1768342047675,0.00015897,94323.0,94300.0,0.010607]
[1768342048376,0.00015897,94323.0,94298.0,0.18814321]
[1768342048577,0.00015897,94323.0,94299.0,0.010607]
[1768342049171,9.7e-07,94323.0,94316.0,0.010605]
[1768342049370,0.09467087,94331.0,94308.0,0.09320356]
[1768342049570,0.09467087,94344.0,94317.0,0.18814321]
[1768342050072,0.09467087,94344.0,94323.0,0.010604]
[1768342051069,0.09467087,94351.0,94327.0,0.18814321]
[1768342051274,0.19015087,94358.0,94334.0,0.18814321]
[1768342051475,0.09467087,94357.0,94332.0,0.09548]
[1768342051669,0.09467087,94357.0,94333.0,0.09548]
[1768342052979,0.00015905,94354.0,94334.0,0.18814321]
[1768342053280,0.00015905,94354.0,94336.0,0.18830226]
[1768342053281,8e-08,94354.0,94336.0,0.18830226]
[1768342053581,8e-08,94354.0,94337.0,0.19874621]
[1768342053770,8e-08,94354.0,94337.0,0.10380656]
[1768342054579,8e-08,94354.0,94336.0,0.00015905]
[1768342054788,8e-08,94354.0,94337.0,0.010603]
[1768342054979,8e-08,94354.0,94336.0,0.00015905]
[1768342055783,8e-08,94354.0,94336.0,0.01076205]
[1768342055984,8e-08,94354.0,94336.0,0.1027596]
[1768342056183,8e-08,94354.0,94341.0,0.010602]
[1768342056377,8e-08,94354.0,94338.0,0.1847041]
[1768342056783,8e-08,94354.0,94339.0,0.1847041]
[1768342057379,8e-08,94354.0,94340.0,0.1847041]
[1768342058084,8e-08,94354.0,94340.0,0.17940373]
[1768342059384,8e-08,94354.0,94341.0,0.09199755]
[1768342060072,8e-08,94354.0,94342.0,0.09270655]
[1768342060278,8e-08,94354.0,94343.0,0.09199755]
[1768342060473,8e-08,94354.0,94344.0,0.2801841]
[1768342061080,8e-08,94354.0,94338.0,0.09270655]
[1768342061286,8e-08,94354.0,94336.0,0.09563905]
[1768342061782,8e-08,94354.0,94340.0,0.1847041]
[1768342062082,8e-08,94354.0,94342.0,0.1847041]
[1768342062283,8e-08,94354.0,94343.0,0.1847041]
[1768342062476,8e-08,94354.0,94345.0,0.1847041]
[1768342062784,8e-08,94354.0,94337.0,0.09270655]
[1768342063083,8e-08,94354.0,94338.0,0.09548]
[1768342063285,8e-08,94354.0,94338.0,0.496083]
[1768342063472,8e-08,94354.0,94339.0,0.1847041]
[1768342063669,8e-08,94354.0,94339.0,0.5647041]
[1768342063885,8e-08,94354.0,94339.0,0.1847041]
[1768342064084,8e-08,94354.0,94339.0,0.09199755]
[1768342064475,8e-08,94354.0,94341.0,0.09199755]
[1768342064670,8e-08,94354.0,94340.0,0.09270655]
[1768342064993,8e-08,94354.0,94338.0,0.09548]
[1768342067386,0.09676573,94354.0,94336.0,0.00015905]
[1768342067584,0.09676565,94349.0,94327.0,0.09548]
[1768342068177,0.09676565,94348.0,94327.0,0.09548]
[1768342068677,8e-08,94354.0,94321.0,0.09199755]
[1768342068678,0.0966737,94346.0,94321.0,0.09199755]
[1768342068881,0.0966737,94344.0,94320.0,0.09548]
[1768342069084,0.09676565,94339.0,94320.0,0.09548]
[1768342070791,0.09548,94342.0,94320.0,0.2801841]
[1768342072082,0.09548,94342.0,94322.0,0.1847041]
[1768342072391,0.09548,94342.0,94325.0,0.09270655]
[1768342073587,0.09548,94342.0,94325.0,0.010604]
[1768342073790,0.09676565,94347.0,94324.0,0.1847041]
[1768342074187,0.09548,94346.0,94324.0,0.1847041]
[1768342074384,0.09548,94345.0,94324.0,0.1847041]
[1768342074585,0.09548,94344.0,94325.0,0.010604]
[1768342075594,0.09548,94345.0,94326.0,0.09270655]
[1768342075889,0.09548,94345.0,94327.0,0.09270655]
[1768342076991,0.09548,94345.0,94326.0,0.09199755]
[1768342078192,0.09548,94345.0,94326.0,0.1847041]
[1768342079288,8e-08,94354.0,94334.0,0.1847041]
[1768342079681,8e-08,94354.0,94332.0,0.10330955]
[1768342079886,8e-08,94354.0,94334.0,0.010603]
[1768342080186,8e-08,94354.0,94337.0,0.09270655]
[1768342080385,0.09548,94353.0,94338.0,0.09270655]
[1768342080687,0.09548,94353.0,94320.0,0.23590081]
[1768342080688,8e-08,94354.0,94345.0,0.09270655]
[1768342080888,0.09676565,94376.0,94348.0,0.09270655]
[1768342081079,0.09548,94387.0,94360.0,0.1847041]
[1768342081279,0.09548,94387.0,94364.0,0.09270655]
[1768342081487,0.01246296,94385.0,94368.0,0.09270655]
[1768342081686,0.005297,94393.0,94370.0,0.09270655]
[1768342081981,0.01827165,94393.0,94372.0,0.09270655]
[1768342082180,0.005297,94393.0,94374.0,0.09270655]
[1768342082400,0.00015896,94391.0,94368.0,0.1847041]
[1768342082589,0.00015896,94391.0,94369.0,0.1847041]
[1768342082892,0.00015896,94391.0,94371.0,0.1847041]
[1768342083081,0.00015896,94391.0,94372.0,0.09270655]
[1768342083284,0.00015896,94391.0,94373.0,0.1847041]
[1768342083485,0.09676565,94410.0,94377.0,0.09270655]
[1768342083679,0.09676565,94406.0,94375.0,0.09199755]
[1768342083883,0.09676565,94404.0,94376.0,0.09270655]
[1768342084396,0.09676565,94404.0,94371.0,0.00015896]
[1768342084397,0.09676565,94401.0,94374.0,0.09270655]
[1768342084691,0.09676565,94399.0,94374.0,0.09270655]
[1768342084891,0.0966737,94407.0,94377.0,0.09270655]
[1768342085094,0.0999118,94405.0,94378.0,0.09859398]
[1768342085291,0.11247662,94405.0,94379.0,0.09323149]
[1768342085492,0.11247662,94405.0,94381.0,0.09323149]
[1768342086187,0.0999118,94404.0,94381.0,0.09323149]
[1768342087082,0.01256482,94405.0,94383.0,0.19182547]
[1768342087280,0.0999118,94407.0,94383.0,0.19182547]
[1768342087580,0.19502381,94407.0,94383.0,0.19182547]
[1768342087788,0.0999118,94406.0,94383.0,0.19182547]
[1768342088992,0.0999118,94406.0,94384.0,0.09323149]
[1768342089488,0.0999118,94405.0,94383.0,0.09859398]
[1768342089695,0.0999118,94404.0,94379.0,0.09323149]
[1768342089886,0.0999118,94404.0,94380.0,0.09323149]
[1768342090089,0.0999118,94404.0,94380.0,0.19182547]
[1768342090591,0.00529588,94413.0,94388.0,0.09859398]
[1768342090798,0.00529588,94413.0,94387.0,0.010597]
[1768342090799,0.00529588,94413.0,94391.0,0.09859398]
[1768342091002,0.00529588,94413.0,94393.0,0.09859398]
[1768342091496,0.00529588,94413.0,94394.0,0.09875294]
[1768342091692,0.00529588,94413.0,94396.0,0.09859398]
[1768342091996,0.00529588,94413.0,94397.0,0.10918998]
[1768342092194,0.01249057,94421.0,94401.0,0.09859398]
[1768342092591,0.0999118,94429.0,94403.0,0.09323149]
[1768342092793,0.0999118,94427.0,94403.0,0.09323149]
[1768342092990,0.09544,94432.0,94400.0,0.09323149]
[1768342092991,0.19502381,94426.0,94400.0,0.09323149]
[1768342093301,0.09511201,94423.0,94400.0,0.09544]
[1768342093502,0.09511201,94421.0,94400.0,0.09544]
[1768342093807,0.0999118,94419.0,94400.0,0.09544]
[1768342094099,0.0999118,94426.0,94401.0,0.09323149]
[1768342094301,0.0999118,94426.0,94402.0,0.09323149]
[1768342094501,0.0999118,94425.0,94402.0,0.09323149]
[1768342094801,0.0999118,94424.0,94401.0,0.09859398]
[1768342095010,0.09511201,94437.0,94411.0,0.09323149]
[1768342095192,0.09544,94455.0,94418.0,0.19182547]
[1768342095387,0.09544,94455.0,94421.0,0.19182547]
[1768342095388,0.0999118,94450.0,94421.0,0.19182547]
[1768342095589,0.19502381,94448.0,94421.0,0.28726547]
[1768342095793,0.0999118,94446.0,94421.0,0.28726547]
[1768342095989,0.01270163,94450.0,94426.0,0.19182547]
[1768342096293,0.27411072,94458.0,94430.0,0.19182547]
[1768342096496,0.01776746,94453.0,94430.0,0.19182547]
[1768342096690,0.01776746,94453.0,94425.0,0.00015888]
[1768342096691,0.18691294,94449.0,94425.0,0.00015888]
[1768342096894,0.18691294,94448.0,94425.0,0.00015888]
[1768342097090,0.00529364,94453.0,94426.0,0.18119839]
[1768342097287,0.09129568,94452.0,94427.0,0.18119839]
[1768342097492,0.09129568,94449.0,94425.0,0.00015888]
[1768342097686,0.09561726,94448.0,94425.0,0.00015888]
[1768342097901,0.09561726,94446.0,94425.0,0.00015888]
[1768342098202,0.09129568,94445.0,94425.0,0.00015888]
[1768342098507,0.18691294,94451.0,94425.0,0.00015888]
[1768342098802,0.18691294,94449.0,94425.0,0.00015888]
[1768342099002,0.09129568,94447.0,94425.0,0.00015888]
[1768342099203,0.18691294,94447.0,94425.0,0.00015888]
[1768342099395,0.18691294,94445.0,94425.0,0.00015888]
[1768342099595,0.09129568,94444.0,94425.0,0.00015888]
[1768342099795,0.18691294,94444.0,94425.0,0.00015888]
[1768342099995,0.09129568,94443.0,94425.0,0.00015888]
[1768342100401,0.18691294,94443.0,94425.0,0.00015888]
[1768342100602,0.09129568,94451.0,94425.0,0.00015888]
[1768342100898,0.00529364,94453.0,94429.0,0.18119839]
[1768342101105,0.00529364,94453.0,94430.0,0.09040421]
[1768342101303,0.00529364,94453.0,94430.0,0.18119839]
[1768342102198,0.09658932,94453.0,94430.0,0.09079418]
[1768342102598,0.00529364,94453.0,94431.0,0.09040421]
[1768342103496,0.09658932,94453.0,94430.0,0.09079418]
[1768342103697,0.09658932,94453.0,94430.0,0.18119839]
[1768342103893,0.00529364,94453.0,94431.0,0.18119839]
[1768342104110,0.00529364,94453.0,94432.0,0.09040421]
[1768342104510,0.00529364,94453.0,94436.0,0.010592]
[1768342104698,0.00529364,94453.0,94437.0,0.09040421]
[1768342104993,0.09129568,94470.0,94446.0,0.10099521]
[1768342105193,0.10515698,94470.0,94446.0,0.10099521]
[1768342105499,0.10515698,94470.0,94446.0,0.09040421]
[1768342105705,0.0138613,94470.0,94446.0,0.09040421]
[1768342105903,0.09129568,94469.0,94449.0,0.00015888]
[1768342106609,0.10545237,94470.0,94449.0,0.09056309]
[1768342106809,0.10545237,94470.0,94449.0,0.08526384]
[1768342107206,0.10545237,94470.0,94450.0,0.01059]
[1768342107404,0.09129568,94470.0,94450.0,0.01059]
[1768342107601,0.09129568,94478.0,94450.0,0.01059]
[1768342107807,0.01931685,94473.0,94446.0,0.010591]
[1768342108002,0.08329244,94491.0,94446.0,0.06]
[1768342108317,0.08329244,94491.0,94469.0,0.010588]
[1768342108509,0.01931573,94493.0,94474.0,0.010588]
[1768342108814,0.09129568,94504.0,94481.0,0.09040421]
[1768342109013,0.09129568,94504.0,94484.0,0.09040421]
[1768342109220,0.0954,94511.0,94484.0,0.09040421]
[1768342109416,0.09129568,94512.0,94486.0,0.09040421]
[1768342109718,0.58682156,94646.0,94464.0,0.010589]
[1768342109719,0.01390529,94516.0,94492.0,0.09040421]
[1768342110032,0.09129568,94526.0,94497.0,0.09040421]
[1768342110224,0.09561726,94523.0,94489.0,0.09040421]
[1768342110523,0.09129568,94499.0,94482.0,0.09536]
[1768342110815,0.09129568,94504.0,94483.0,0.09536]
[1768342111017,0.00015879,94508.0,94484.0,0.10099021]
[1768342111211,0.10513273,94526.0,94493.0,0.09040421]
[1768342111412,0.10513273,94526.0,94495.0,0.09040421]
[1768342112015,0.09129568,94517.0,94496.0,0.09536]
[1768342112214,0.09129568,94517.0,94484.0,0.0001587]
[1768342112215,0.18691294,94514.0,94484.0,0.0001587]
[1768342112421,0.09536,94520.0,94487.0,0.09536]
[1768342112422,0.09129568,94509.0,94487.0,0.09536]
[1768342112721,0.09129568,94509.0,94487.0,0.18576421]
[1768342113121,0.18691294,94508.0,94487.0,0.09536]
[1768342113318,0.09129568,94505.0,94484.0,0.0001587]
[1768342113519,0.09129568,94498.0,94463.0,0.09040421]
[1768342113824,0.09129568,94498.0,94435.0,0.010592]
[1768342113825,0.09129568,94498.0,94465.0,0.09040421]
[1768342114115,0.09129568,94498.0,94471.0,0.09040421]
[1768342114306,0.09129568,94506.0,94475.0,0.09040421]
[1768342114510,0.09129568,94505.0,94478.0,0.09040421]
[1768342114912,0.45336914,94505.0,94478.0,0.09040421]
[1768342115522,0.09652828,94504.0,94478.0,0.09040421]
[1768342115722,0.23694909,94500.0,94478.0,0.09040421]
[1768342115919,0.09652828,94499.0,94477.0,0.09536]
[1768342116220,0.09652828,94498.0,94471.0,0.09386618]
[1768342116422,0.09652828,94498.0,94472.0,0.09536]
[1768342117119,0.09652828,94489.0,94471.0,0.09536]
[1768342117533,0.09652828,94480.0,94453.0,0.09386618]
[1768342117726,0.09652828,94480.0,94454.0,0.09536]
[1768342118020,0.09652828,94467.0,94443.0,0.09536]
[1768342118219,0.09652828,94459.0,94441.0,0.09536]
[1768342118816,0.09652828,94459.0,94437.0,0.010592]
[1768342119214,0.09652828,94458.0,94433.0,0.19981818]
[1768342119414,0.09652828,94449.0,94433.0,0.08193148]
[1768342119619,0.09652828,94449.0,94434.0,0.09536]